bitfinex/quotes_ETHUSD_20230403
["timestamp","ask_amount","ask_price","bid_price","bid_amount"]
[1680481872395,1.55071021,1792.6,1792.4,0.83684]
[1680481872604,0.703,1792.5,1792.4,0.83684]
[1680481872806,0.85807102,1792.5,1792.4,0.83684]
[1680481873516,1.56107102,1792.5,1792.2,2.28526765]
[1680481873718,0.703,1792.4,1792.3,0.27895]
[1680481873925,1.4,1792.4,1792.2,0.27898]
[1680481874085,0.7733,1792.3,1792.1,0.27899]
[1680481874279,1.405,1792.2,1792.1,0.83699]
[1680481878756,1.405,1792.2,1792.1,0.27899]
[1680481884736,1.405,1792.2,1792.1,0.83699]
[1680481884897,1.65511903,1792.2,1792.1,0.83699]
[1680481893074,1.65511903,1792.2,1792.1,1.26496938]
[1680481894674,0.95211903,1792.2,1792.1,1.26496938]
[1680481899190,0.702,1792.2,1792.1,1.26496938]
[1680481899382,1.09619026,1792.3,1792.1,1.26496938]
[1680481899383,1.007,1792.3,1792.1,1.26496938]
[1680481899949,0.007,1792.3,1792.1,1.26496938]
[1680481905399,4.7498,1792.4,1792.1,1.26496938]
[1680481905730,18.14147102,1792.5,1792.1,1.26496938]
[1680481905731,12.27047102,1792.5,1792.1,1.26496938]
[1680481911132,1.2270471,1792.4,1792.1,1.26496938]
[1680481911330,1.2270471,1792.4,1792.1,0.42797938]
[1680481911331,0.703,1792.2,1792.1,0.42797938]
[1680481911516,0.703,1792.2,1792.1,0.70697938]
[1680481912835,0.703,1792.2,1792.1,0.42797938]
[1680481913038,0.774,1792.2,1792.1,0.42797938]
[1680481914301,1.471,1792.2,1792.1,0.42797938]
[1680481914721,1.49689026,1792.2,1792.1,0.42797938]
[1680481914934,1.49689026,1792.2,1791.8,1.44838765]
[1680481915141,1.49689026,1792.2,1791.8,0.00555596]
[1680481915142,0.703,1792.1,1791.8,0.00555596]
[1680481915323,0.85198903,1792.1,1791.8,0.28458596]
[1680481915852,0.85198903,1792.1,1791.8,0.27903]
[1680481916002,0.85198903,1792.1,1791.9,0.40443945]
[1680481916206,1.406,1792.0,1791.9,0.40443945]
[1680481916460,1.42489026,1792.0,1791.9,0.40443945]
[1680481916769,2.21937819,1792.0,1791.9,0.40443945]
[1680481917253,2.21937819,1792.0,1791.8,0.27904]
[1680481917462,0.7,1791.9,1791.8,0.27904]
[1680481919017,0.7,1791.9,1791.8,0.66634295]
[1680481923742,0.7,1791.9,1791.8,0.38730295]
[1680481923945,0.99844404,1791.7,1791.5,0.006]
[1680481924149,5.12676728,1791.6,1791.4,0.1]
[1680481924306,8.27344404,1791.5,1791.4,0.1]
[1680481924507,11.29321132,1791.5,1791.2,0.03077612]
[1680481924708,0.7,1791.3,1791.2,0.03077612]
[1680481927855,0.71889026,1791.3,1791.2,0.03077612]
[1680481928063,2.50336929,1791.3,1791.2,0.03077612]
[1680481929559,1.80336929,1791.3,1791.2,0.30991612]
[1680481929869,0.01889026,1791.3,1791.2,0.03077612]
[1680481932123,0.01889026,1791.3,1791.2,0.34004571]
[1680481935243,23.12543708,1791.5,1791.2,0.34004571]
[1680481935572,23.11843708,1791.5,1791.2,0.34004571]
[1680481935786,2.31184371,1791.4,1791.2,0.34004571]
[1680481936860,1.55323708,1791.5,1791.2,0.34004571]
[1680481937085,1.54423708,1791.5,1791.2,0.34004571]
[1680481937792,2.24444404,1791.3,1791.2,4.571e-05]
[1680481937954,2.24444404,1791.3,1791.1,0.1]
[1680481937955,0.34,1791.2,1791.1,0.1]
[1680481938157,0.99644404,1790.9,1790.7,0.546417]
[1680481938480,7.349,1790.8,1790.7,0.546417]
[1680481938661,7.36989026,1790.8,1790.7,0.546417]
[1680481942390,7.37689026,1790.8,1790.7,0.546417]
[1680481942603,8.49300042,1790.8,1790.7,0.496417]
[1680481945308,1.27589026,1790.8,1790.7,0.496417]
[1680481945597,8.871,1791.0,1790.7,0.775637]
[1680481945598,0.13853349,1790.9,1790.7,0.775637]
[1680481945809,10.128,1791.0,1790.7,0.496417]
[1680481946002,10.128,1791.0,1790.7,0.81296577]
[1680481946206,11.7445844,1791.0,1790.7,0.36654877]
[1680481947415,12.31005624,1791.0,1790.7,0.36654877]
[1680481947777,1.248,1790.8,1790.7,0.36654877]
[1680481950884,11.52436728,1790.8,1790.7,0.36654877]
[1680481951090,11.39376728,1790.8,1790.7,0.36654877]
[1680481951302,12.54899303,1790.8,1790.7,0.36654877]
[1680481955008,18.29132575,1790.8,1790.7,0.05]
[1680481955406,18.52132575,1790.8,1790.7,0.05]
[1680481955815,21.30909303,1790.8,1790.7,0.05]
[1680481956012,21.44869303,1790.8,1790.7,0.05]
[1680481956313,24.30909303,1790.8,1790.7,0.05]
[1680481963109,24.30909303,1790.8,1790.7,0.54356137]
[1680481964748,0.002,1790.8,1790.7,0.54356137]
[1680481965071,5.873,1791.1,1790.7,1.38122137]
[1680481965246,0.002,1791.1,1790.7,2.62422137]
[1680481965414,10.2908,1791.3,1790.7,2.62422137]
[1680481965608,4.03576728,1791.2,1790.8,0.28397436]
[1680481965851,5.871,1791.1,1790.8,0.28397436]
[1680481966008,5.873,1791.1,1790.8,1.33554397]
[1680481966404,5.873,1791.1,1790.8,2.45235397]
[1680481966609,0.23,1791.0,1790.8,2.45835397]
[1680481970375,6.7113,1791.0,1790.8,2.45357961]
[1680481970582,10.76795754,1791.0,1790.8,0.49316961]
[1680481970742,12.15876728,1790.9,1790.8,0.49316961]
[1680481970920,8.89076728,1790.9,1790.8,0.49316961]
[1680481971124,9.99056303,1790.9,1790.8,0.49316961]
[1680481974465,10.55013424,1790.9,1790.8,0.49316961]
[1680481975087,1.66136696,1790.9,1790.8,0.49316961]
[1680481975241,0.55957121,1790.9,1790.8,0.49316961]
[1680481975433,0.62919026,1791.0,1790.8,0.49316961]
[1680481975635,9.28795754,1791.0,1790.8,0.49316961]
[1680481975849,0.5,1790.9,1790.8,0.49316961]
[1680481976051,9.15876728,1790.9,1790.8,0.49316961]
[1680481976238,10.13976303,1790.9,1790.8,0.49316961]
[1680481976449,10.36976303,1790.9,1790.8,0.49316961]
[1680481978364,10.37676303,1790.9,1790.8,0.49316961]
[1680481979387,10.36976303,1790.9,1790.8,0.49316961]
[1680481980363,9.86976303,1790.9,1790.8,0.49316961]
[1680481981908,9.87676303,1790.9,1790.8,0.49316961]
[1680481982278,9.87376303,1790.9,1790.8,0.49316961]
[1680481982614,9.86976303,1790.9,1790.8,0.49316961]
[1680481982775,7.08199575,1790.9,1790.8,0.49316961]
[1680481983572,1.21099575,1790.9,1790.8,0.49316961]
[1680481983902,0.23,1790.9,1790.8,0.49316961]
[1680481984680,8.32168282,1791.0,1790.8,0.49316961]
[1680481985724,0.5,1790.9,1790.8,0.49316961]
[1680481985886,8.32168282,1791.0,1790.8,0.49316961]
[1680481986220,11.12168282,1791.0,1790.8,0.49316961]
[1680481986669,11.12168282,1791.0,1790.8,0.77236961]
[1680481986670,5.24368282,1791.0,1790.8,0.77236961]
[1680481987718,11.11170108,1791.0,1790.8,0.49316961]
[1680481988069,9.87070108,1791.0,1790.8,0.49316961]
[1680481989182,3.99970108,1791.0,1790.8,0.77236961]
[1680481989469,2.8,1791.0,1790.8,1.33076961]
[1680481990506,2.8,1791.0,1790.8,1.33676961]
[1680481991585,2.8,1791.0,1790.8,1.32786886]
[1680481995324,2.8,1791.0,1790.8,2.57586886]
[1680481995526,2.8,1791.0,1790.9,0.25758689]
[1680481995726,2.8,1791.0,1790.9,2.21188689]
[1680481996150,2.74996181,1791.0,1790.9,2.71226882]
[1680482008739,0.02789026,1791.3,1790.9,2.71226882]
[1680482008945,0.01889026,1791.3,1790.9,2.71226882]
[1680482011674,0.01889026,1791.3,1791.0,0.27122688]
[1680482011883,5.60659304,1791.5,1791.2,1.248]
[1680482011884,5.0588,1791.5,1791.2,1.248]
[1680482012054,5.0588,1791.5,1791.3,0.83737]
[1680482012667,0.009,1791.5,1791.3,0.83737]
[1680482012852,0.007,1791.5,1791.3,0.83737]
[1680482013469,10.77742512,1791.6,1791.3,0.83737]
[1680482016292,10.77342512,1791.6,1791.3,0.78737]
[1680482016501,10.77742512,1791.6,1791.3,0.78737]
[1680482017250,12.98542074,1791.6,1791.3,0.78737]
[1680482017819,15.68542074,1791.6,1791.3,0.78737]
[1680482024206,15.68542074,1791.6,1791.4,0.48148497]
[1680482024410,15.68542074,1791.6,1791.5,0.27909]
[1680482031177,21.55642074,1791.6,1791.4,0.27909]
[1680482031391,2.15564207,1791.5,1791.3,0.27912]
[1680482031610,2.65564207,1791.5,1791.3,0.27912]
[1680482032039,1.248,1791.4,1791.2,0.27913]
[1680482032302,6.799,1791.4,1791.0,0.27916]
[1680482032468,0.1248,1791.3,1791.0,0.27916]
[1680482032610,0.704,1791.2,1791.0,0.27916]
[1680482034255,0.704,1791.2,1791.0,0.8375]
[1680482035017,0.704,1791.2,1791.0,0.27916]
[1680482035217,0.5704,1791.1,1791.0,0.27916]
[1680482035614,0.0704,1791.1,1791.0,0.27916]
[1680482037202,5.871,1791.0,1790.7,30.288]
[1680482037409,5.871,1791.0,1790.7,0.33721]
[1680482037410,1.237,1790.8,1790.7,0.33721]
[1680482037551,1.38152657,1790.8,1790.7,0.32921]
[1680482039111,1.38152657,1790.8,1790.7,0.77159461]
[1680482039267,4.08152657,1790.8,1790.7,0.77159461]
[1680482041458,4.08152657,1790.8,1790.7,1.33003461]
[1680482042199,2.8467,1790.8,1790.7,1.33003461]
[1680482051402,2.7,1790.8,1790.7,1.33003461]
[1680482052504,2.7,1790.8,1790.7,0.77159461]
[1680482058010,8.571,1790.8,1790.7,0.49238461]
[1680482058194,10.047,1790.8,1790.7,0.49238461]
[1680482072963,3.946,1790.8,1790.7,0.49238461]
[1680482073165,3.944,1790.8,1790.7,0.49238461]
[1680482073669,3.944,1790.8,1790.7,0.77160461]
[1680482073974,3.944,1790.8,1790.7,0.49238461]
[1680482075476,3.944,1790.8,1790.7,0.77160461]
[1680482075773,2.707,1790.8,1790.7,0.49238461]
[1680482078084,4.41583478,1790.8,1790.7,0.49238461]
[1680482078379,5.44660728,1790.8,1790.7,0.49238461]
[1680482078579,5.44860728,1790.8,1790.7,0.49238461]
[1680482078789,0.39580782,1790.8,1790.7,1.33004461]
[1680482078952,0.39080782,1790.8,1790.7,3.69492461]
[1680482079140,0.39080782,1790.8,1790.7,8.20692461]
[1680482079340,0.39080782,1790.8,1790.7,11.00269189]
[1680482079542,0.39080782,1790.8,1790.7,12.60911984]
[1680482079894,0.39080782,1790.8,1790.7,13.77846749]
[1680482080068,0.35043906,1790.8,1790.7,13.77446749]
[1680482080246,0.35043906,1790.8,1790.7,13.77246749]
[1680482081087,0.30623527,1790.8,1790.7,13.77246749]
[1680482082078,0.2622525,1790.8,1790.7,13.77246749]
[1680482082463,0.2622525,1790.8,1790.7,13.77724211]
[1680482083278,0.21848964,1790.8,1790.7,13.77724211]
[1680482084276,0.1749456,1790.8,1790.7,13.77724211]
[1680482084957,0.1749456,1790.8,1790.7,12.60789446]
[1680482085138,0.13214807,1790.8,1790.7,12.60789446]
[1680482086086,0.08957909,1790.8,1790.7,12.60789446]
[1680482087231,0.04722295,1790.8,1790.7,12.60789446]
[1680482088303,0.00507859,1790.8,1790.7,12.60789446]
[1680482089236,1.69841455,1791.4,1790.8,1.0]
[1680482089402,1.69841455,1791.4,1790.9,1.95422]
[1680482090084,1.69841455,1791.4,1791.0,0.41789482]
[1680482090280,1.69841455,1791.4,1791.1,1.95406]
[1680482093059,1.69141455,1791.4,1791.1,1.95406]
[1680482093346,0.01889026,1791.5,1791.1,1.95406]
[1680482093552,1.71238783,1791.5,1791.1,1.95406]
[1680482093726,0.01889026,1791.5,1791.1,1.95406]
[1680482094048,7.4673018,1791.5,1791.1,1.95406]
[1680482094250,2.78776728,1791.4,1791.1,0.83745]
[1680482094453,0.5,1791.2,1791.1,0.83745]
[1680482094628,0.507,1791.2,1791.1,0.83745]
[1680482095525,5.873,1791.3,1791.1,0.83408934]
[1680482095754,0.5873,1791.2,1791.1,0.83408934]
[1680482097354,5.873,1791.3,1791.1,0.83408934]
[1680482099056,5.873,1791.3,1791.2,0.41710329]
[1680482099257,6.103,1791.3,1791.2,0.69624329]
[1680482100566,6.103,1791.3,1791.2,1.25452329]
[1680482100766,0.232,1791.3,1791.2,1.25452329]
[1680482100970,0.72489026,1791.4,1791.2,1.25452329]
[1680482101130,0.009,1791.5,1791.2,1.49163362]
[1680482101476,7.50516207,1791.6,1791.2,1.49163362]
[1680482101477,7.51416207,1791.6,1791.2,1.49163362]
[1680482102035,6.81616207,1791.6,1791.2,1.49163362]
[1680482113257,0.14992512,1791.6,1791.2,2.19463362]
[1680482113459,0.14092512,1791.6,1791.3,0.21946336]
[1680482113657,0.14092512,1791.6,1791.4,1.95377]
[1680482114176,0.009,1791.8,1791.4,2.37008194]
[1680482114382,0.11000001,1791.9,1791.6,0.83724]
[1680482114586,0.11700001,1791.9,1791.6,0.83724]
[1680482114773,0.25630754,1791.9,1791.6,0.83724]
[1680482118476,0.24930754,1791.9,1791.6,0.8342792]
[1680482120052,0.01889026,1791.8,1791.6,0.8342792]
[1680482120282,0.95189026,1791.8,1791.6,0.2761192]
[1680482120581,0.95189026,1791.8,1791.6,0.8342792]
[1680482121658,0.24889026,1791.8,1791.6,0.8342792]
[1680482122739,0.79687317,1791.8,1791.6,0.8342792]
[1680482122943,0.24889026,1791.8,1791.6,0.8342792]
[1680482124047,0.01889026,1791.8,1791.6,1.02933912]
[1680482124280,0.24930754,1791.9,1791.6,1.02933912]
[1680482125593,0.24930754,1791.9,1791.6,0.8342792]
[1680482126300,6.574,1791.8,1791.4,0.69740194]
[1680482126521,6.583,1791.8,1791.4,0.69540194]
[1680482127249,7.118,1791.8,1791.4,0.69540194]
[1680482128663,0.23,1791.7,1791.4,0.41631194]
[1680482128862,0.23,1791.7,1791.4,0.69541194]
[1680482128863,7.11457673,1791.7,1791.4,0.69541194]
[1680482129195,7.12357673,1791.7,1791.4,0.69541194]
[1680482131256,7.12357673,1791.7,1791.4,1.25363194]
[1680482131886,1.25257673,1791.7,1791.4,1.25363194]
[1680482132098,0.23,1791.7,1791.4,1.25363194]
[1680482132266,0.78655681,1791.7,1791.4,1.25363194]
[1680482132566,0.23,1791.7,1791.4,1.25363194]
[1680482133213,0.23,1791.7,1791.4,0.83732]
[1680482135912,1.472,1791.7,1791.4,0.83732]
[1680482136113,0.6472,1791.6,1791.4,0.83732]
[1680482136287,0.1472,1791.6,1791.4,0.83732]
[1680482137410,2.04262861,1791.7,1791.4,0.83732]
[1680482140786,0.80062861,1791.7,1791.4,0.83732]
[1680482140986,4.9984,1791.8,1791.4,0.83732]
[1680482141186,4.9964,1791.8,1791.4,0.83732]
[1680482142533,5.55847578,1791.8,1791.4,0.83732]
[1680482142843,5.56047578,1791.8,1791.4,0.83732]
[1680482144217,0.57107578,1791.8,1791.4,1.032698]
[1680482144403,0.56207578,1791.8,1791.4,1.032698]
[1680482144608,11.76086121,1791.9,1791.4,1.032698]
[1680482149513,11.75880733,1791.9,1791.4,1.032698]
[1680482150416,12.63641099,1791.9,1791.4,1.032698]
[1680482150620,1.46878872,1791.8,1791.4,1.032698]
[1680482150812,0.5,1791.8,1791.4,1.032698]
[1680482151215,12.63641099,1791.9,1791.5,0.1032698]
[1680482151414,11.73991707,1791.9,1791.6,0.83722]
[1680482151942,0.83801707,1791.9,1791.6,0.83722]
[1680482152135,0.82901707,1791.9,1791.6,0.83722]
[1680482158353,1.32901707,1791.9,1791.6,0.83722]
[1680482159045,0.74725366,1791.9,1791.6,0.83722]
[1680482159246,2.36497269,1791.9,1791.6,0.83722]
[1680482159853,2.38386295,1791.9,1791.6,0.83722]
[1680482161191,8.25486295,1791.9,1791.5,0.27908]
[1680482161498,0.5,1791.7,1791.5,0.27909]
[1680482161696,1.43925578,1791.7,1791.5,0.27909]
[1680482163249,7.93276341,1791.8,1791.5,0.27909]
[1680482165670,8.48158396,1791.8,1791.5,0.27909]
[1680482171028,7.24058396,1791.8,1791.5,0.83728]
[1680482171328,1.36958396,1791.8,1791.5,0.83728]
[1680482171531,7.23158396,1791.8,1791.5,0.83728]
[1680482171832,9.0475894,1791.8,1791.5,0.83728]
[1680482173432,9.03781606,1791.8,1791.5,0.83728]
[1680482175010,9.04481606,1791.8,1791.5,0.55819]
[1680482175346,9.04481606,1791.8,1791.5,0.83728]
[1680482175922,9.04481606,1791.8,1791.5,0.27909]
[1680482176123,0.90448161,1791.7,1791.5,0.27909]
[1680482180127,0.90448161,1791.7,1791.5,0.83728]
[1680482180425,1.13058396,1791.8,1791.5,0.83728]
[1680482183357,1.08058396,1791.8,1791.5,0.83728]
[1680482198687,1.08058396,1791.8,1791.5,0.27909]
[1680482199546,0.53176341,1791.8,1791.5,0.83728]
[1680482199882,1.5005321,1791.8,1791.5,0.83728]
[1680482200777,1.5005321,1791.8,1791.5,0.921008]
[1680482219772,1.5005321,1791.8,1791.5,0.83728]
[1680482224170,1.5005321,1791.8,1791.4,0.28509]
[1680482224411,0.53176341,1791.7,1791.3,0.56901302]
[1680482224690,1.03176341,1791.7,1791.4,0.27911]
[1680482224884,1.31957699,1791.7,1791.4,0.27911]
[1680482225071,1.31957699,1791.7,1791.4,0.28311]
[1680482225986,1.31957699,1791.7,1791.4,0.28511]
[1680482225987,0.81957699,1791.7,1791.4,0.28511]
[1680482226172,0.81957699,1791.7,1791.4,0.28311]
[1680482227252,0.81957699,1791.7,1791.4,0.27911]
[1680482228377,0.81957699,1791.7,1791.4,0.28311]
[1680482229691,0.81957699,1791.7,1791.4,0.27911]
[1680482229898,0.81957699,1791.7,1791.3,0.56301302]
[1680482229899,0.0819577,1791.6,1791.3,0.006]
[1680482230193,0.84255,1791.4,1791.1,0.008]
[1680482230394,0.84255,1791.4,1791.0,0.006]
[1680482230395,6.574,1791.4,1791.0,0.006]
[1680482230623,0.084255,1791.3,1791.0,0.27917]
[1680482230892,6.576,1791.4,1791.0,0.27917]
[1680482231488,5.871,1791.2,1791.0,0.27916]
[1680482231791,5.873,1791.2,1791.0,0.27916]
[1680482231956,5.873,1791.2,1790.9,0.28517]
[1680482234193,5.88,1791.2,1790.9,0.27917]
[1680482234392,6.74866575,1791.2,1790.9,0.27917]
[1680482235097,6.74166575,1791.2,1790.9,0.27917]
[1680482235499,0.703,1791.0,1790.8,0.006]
[1680482235749,6.574,1791.0,1790.7,0.05]
[1680482236034,6.6463,1791.0,1790.7,0.05]
[1680482237798,6.6533,1791.0,1790.7,0.05]
[1680482237998,6.6463,1791.0,1790.7,0.05]
[1680482240150,6.6533,1791.0,1790.7,0.05]
[1680482240437,0.66533,1790.9,1790.7,0.05]
[1680482242442,6.6463,1791.0,1790.7,0.05]
[1680482246195,0.7753,1791.0,1790.7,0.32921]
[1680482246356,0.703,1791.0,1790.7,0.32921]
[1680482251607,5.1177,1791.1,1790.7,0.88765]
[1680482253508,5.11517517,1791.1,1790.7,0.88765]
[1680482253664,5.12217517,1791.1,1790.7,0.88765]
[1680482253865,5.12217517,1791.1,1790.8,0.088765]
[1680482254066,5.12217517,1791.1,1790.9,0.27918]
[1680482254278,5.11517517,1791.1,1790.9,0.27918]
[1680482258109,5.11517517,1791.1,1790.8,0.27918]
[1680482263940,5.11517517,1791.1,1790.8,0.83758]
[1680482264111,5.11517517,1791.1,1790.8,0.92721546]
[1680482265440,5.12217517,1791.1,1790.8,0.92721546]
[1680482267053,5.11517517,1791.1,1790.8,0.92721546]
[1680482268931,5.12217517,1791.1,1790.8,0.92721546]
[1680482269933,5.11517517,1791.1,1790.8,0.92721546]
[1680482270833,5.11517517,1791.1,1790.9,0.09272155]
[1680482271163,5.11517517,1791.1,1791.0,0.27917]
[1680482272365,5.11517517,1791.1,1790.9,0.09272155]
[1680482272572,5.12217517,1791.1,1791.0,0.27917]
[1680482273070,5.11517517,1791.1,1791.0,0.27917]
[1680482274471,5.12217517,1791.1,1791.0,0.27917]
[1680482275263,5.11517517,1791.1,1791.0,0.27917]
[1680482276368,5.11517517,1791.1,1790.9,0.37189155]
[1680482276575,5.12217517,1791.1,1791.0,0.27917]
[1680482276963,5.11517517,1791.1,1791.0,0.27917]
[1680482277652,5.11517517,1791.1,1790.9,0.27917]
[1680482278933,5.12217517,1791.1,1790.9,0.27917]
[1680482279739,13.30007603,1791.1,1790.7,0.056]
[1680482279944,13.30007603,1791.1,1790.7,0.32922]
[1680482280349,13.30007603,1791.1,1790.7,0.88766]
[1680482280852,13.30007603,1791.1,1790.7,0.89366]
[1680482281261,13.30007603,1791.1,1790.7,0.056]
[1680482281464,13.30007603,1791.1,1790.7,0.88766]
[1680482281663,13.30007603,1791.1,1790.7,0.89366]
[1680482281977,13.30707603,1791.1,1790.7,0.88766]
[1680482282481,13.30707603,1791.1,1790.7,0.89366]
[1680482282482,13.30007603,1791.1,1790.7,0.89366]
[1680482283982,5.81317517,1791.1,1790.7,0.89366]
[1680482284359,5.76317517,1791.1,1790.7,0.88766]
[1680482286286,11.63417517,1791.1,1790.7,0.88766]
[1680482286958,11.64117517,1791.1,1790.7,0.88766]
[1680482287384,11.63417517,1791.1,1790.7,0.88766]
[1680482287583,13.97087603,1791.1,1790.7,0.05]
[1680482287880,0.696,1790.8,1790.7,0.05]
[1680482301883,16.51328391,1790.9,1790.7,0.05]
[1680482301884,10.64228391,1790.9,1790.7,0.05]
[1680482302498,5.871,1790.8,1790.7,0.05]
[1680482302705,2.00240512,1790.8,1790.7,0.05]
[1680482303007,2.00040512,1790.8,1790.7,0.05]
[1680482303160,17.21628391,1790.9,1790.7,0.05]
[1680482304923,17.22328391,1790.9,1790.7,0.05]
[1680482305118,17.21828391,1790.9,1790.7,0.05]
[1680482305334,17.21628391,1790.9,1790.7,0.05]
[1680482306895,11.34528391,1790.9,1790.7,0.05]
[1680482307115,10.62339365,1790.9,1790.7,0.05]
[1680482307339,0.14299365,1790.9,1790.7,0.88765]
[1680482307629,0.14099365,1790.9,1790.8,0.926365]
[1680482313048,0.14099365,1790.9,1790.7,0.05]
[1680482319043,7.272,1790.8,1790.7,0.05]
[1680482319245,7.64132812,1790.8,1790.7,0.05]
[1680482320063,12.46932812,1790.8,1790.7,0.05]
[1680482320968,12.32972812,1790.8,1790.7,0.05]
[1680482321270,13.88419603,1790.8,1790.7,0.05]
[1680482321475,14.02379603,1790.8,1790.7,0.05]
[1680482322230,13.88419603,1790.8,1790.7,0.05]
[1680482322671,14.04268629,1790.8,1790.7,0.05]
[1680482324753,13.33968629,1790.8,1790.7,0.05]
[1680482325352,16.40665357,1790.8,1790.7,0.05]
[1680482325701,24.17751468,1790.8,1790.7,0.05]
[1680482325860,24.17751468,1790.8,1790.0,0.002]
[1680482325861,0.99644404,1790.6,1790.0,0.002]
[1680482326098,0.99644404,1790.6,1789.2,2.7288514]
[1680482326099,0.97763,1790.0,1789.2,2.7288514]
[1680482326287,0.13968,1789.7,1789.5,0.01615454]
[1680482326491,0.23,1789.6,1789.5,0.01615454]
[1680482326689,5.873,1789.7,1789.5,0.01615454]
[1680482326888,0.01889026,1789.6,1789.5,0.01015454]
[1680482327216,0.01889026,1789.6,1789.3,0.55887]
[1680482327217,0.28015349,1789.6,1789.3,0.55887]
[1680482327529,0.1980143,1789.6,1789.4,0.055887]
[1680482327713,0.1980143,1789.6,1789.3,0.27943]
[1680482328103,0.01889026,1789.8,1789.3,0.27943]
[1680482328300,6.574,1789.6,1789.2,1.55950375]
[1680482328634,0.705,1789.6,1789.3,0.27943]
[1680482328793,0.703,1789.6,1789.3,0.27943]
[1680482328994,0.01889026,1789.7,1789.3,1.07808338]
[1680482329218,0.30062843,1789.5,1789.3,1.07808338]
[1680482330191,0.01889026,1789.7,1789.3,1.07808338]
[1680482330392,0.01889026,1789.7,1789.3,0.8383]
[1680482332818,1.49089026,1789.7,1789.3,0.27943]
[1680482333137,5.871,1789.6,1789.3,0.27943]
[1680482333298,5.873,1789.6,1789.3,0.27943]
[1680482334404,5.873,1789.6,1789.2,2.40383375]
[1680482334609,0.23,1789.5,1789.2,1.45950375]
[1680482334820,0.23,1789.5,1789.2,1.73895375]
[1680482335251,0.44103271,1789.4,1789.2,1.73895375]
[1680482336526,0.44103271,1789.4,1789.2,1.45950375]
[1680482336724,0.50883598,1789.4,1789.2,1.45950375]
[1680482337025,9.16760326,1789.4,1789.2,1.45950375]
[1680482337242,0.23,1789.3,1789.2,1.45950375]
[1680482337444,10.13076728,1789.3,1789.2,1.38250375]
[1680482337655,11.21859861,1789.3,1789.2,1.38250375]
[1680482337875,11.63773861,1789.3,1789.2,1.38250375]
[1680482338217,11.35830861,1789.3,1789.2,1.38250375]
[1680482338420,11.63073861,1789.3,1789.2,1.38250375]
[1680482338959,11.63773861,1789.3,1789.2,1.38250375]
[1680482339156,12.19376684,1789.3,1789.2,1.32620093]
[1680482339766,15.19376684,1789.3,1789.2,1.32620093]
[1680482339922,14.9332271,1789.3,1789.2,1.32620093]
[1680482340123,14.9332271,1789.3,1789.2,1.27105513]
[1680482340323,16.4626571,1789.3,1789.2,1.27105513]
[1680482341139,16.4626571,1789.3,1789.2,1.21682842]
[1680482341374,0.5,1789.2,1788.7,0.006]
[1680482341675,7.121,1788.8,1788.5,0.27956]
[1680482341878,7.123,1788.8,1788.5,0.28556]
[1680482342026,5.873,1788.8,1788.5,0.27956]
[1680482342381,5.873,1788.8,1788.4,0.56515]
[1680482342382,3.78421132,1788.7,1788.2,0.1]
[1680482342527,2.498,1788.3,1788.2,0.1]
[1680482342861,11.15676728,1788.3,1788.0,0.19437223]
[1680482343063,0.009,1788.3,1788.0,0.47400223]
[1680482343221,3.0,1788.5,1788.0,1.03328223]
[1680482343222,0.007,1788.5,1788.0,1.03328223]
[1680482343564,1.248,1788.4,1788.0,0.19437223]
[1680482343884,1.242,1788.2,1788.0,0.32401223]
[1680482344230,1.39239026,1788.4,1788.0,0.32401223]
[1680482344231,7.13789026,1788.4,1788.0,0.88329223]
[1680482344435,7.14689026,1788.4,1788.0,0.88329223]
[1680482344844,7.13989026,1788.4,1788.0,0.88329223]
[1680482345040,0.002,1788.4,1788.1,2.78776728]
[1680482345285,0.007,1788.8,1788.2,3.23604673]
[1680482345461,0.007,1788.9,1788.2,3.23604673]
[1680482345666,7.116,1788.9,1788.2,3.23604673]
[1680482345870,7.118,1788.9,1788.2,3.23604673]
[1680482346029,7.118,1788.9,1788.3,0.32360467]
[1680482346375,7.118,1788.9,1788.4,0.83869]
[1680482346576,7.118,1788.9,1788.4,0.84347076]
[1680482349812,0.009,1788.9,1788.4,0.84347076]
[1680482350086,0.007,1789.0,1788.4,0.84347076]
[1680482350264,5.871,1788.8,1788.6,0.83862]
[1680482350478,5.88,1788.8,1788.3,0.002]
[1680482350634,1.25,1788.5,1788.1,5.36564]
[1680482350962,1.25,1788.5,1788.3,0.83878]
[1680482351530,0.007,1788.6,1788.3,0.83878]
[1680482351730,0.4317,1788.6,1788.3,0.27959]
[1680482352688,0.4247,1788.6,1788.3,0.27959]
[1680482353179,0.4247,1788.6,1788.3,0.83878]
[1680482353949,0.4247,1788.6,1788.3,0.27959]
[1680482354151,0.44359026,1788.6,1788.2,0.2796]
[1680482354764,0.44359026,1788.6,1788.1,0.55922]
[1680482354967,0.44359026,1788.6,1788.2,0.2796]
[1680482357238,7.11,1788.5,1787.8,13.9923]
[1680482357575,7.11,1788.5,1787.8,0.28766]
[1680482357576,7.121,1788.3,1787.8,0.28766]
[1680482357743,9.91076728,1788.3,1787.8,0.839]
[1680482357948,0.23,1788.2,1787.8,0.839]
[1680482358144,5.871,1788.1,1787.8,0.839]
[1680482358380,5.873,1788.1,1787.8,0.839]
[1680482360942,5.89189026,1788.1,1787.8,0.839]
[1680482361142,5.89889026,1788.1,1787.8,0.839]
[1680482361985,5.89889026,1788.1,1786.9,3.0375075]
[1680482361986,8.65876728,1787.9,1786.9,3.0375075]
[1680482362154,7.54055,1787.6,1786.9,0.002]
[1680482362375,5.871,1787.1,1786.9,0.002]
[1680482362697,5.871,1787.1,1786.9,0.28181]
[1680482362698,0.009,1787.1,1786.9,0.28181]
[1680482362990,5.78776728,1787.5,1786.9,0.28181]
[1680482362991,0.007,1787.4,1786.9,0.28181]
[1680482363166,0.237,1787.4,1786.9,0.365956]
[1680482363383,2.78776728,1787.3,1786.9,0.002]
[1680482363642,3.0,1787.2,1786.9,0.002]
[1680482363778,3.007,1787.2,1786.9,0.002]
[1680482364158,8.90167316,1787.2,1786.9,0.002]
[1680482364355,10.14567316,1787.2,1786.9,0.002]